Workbook

Sheet Composição
B3: LEVANTAMENTO PLANIALTIMÉTRICO CADASTRAL
B4: COMPOSIÇÃO DE PREÇOS - UNIDADE: EQUIPE/DIA
B6: BASE: TABELA DE ENGENHARIA CONSULTIVA CODEVASF FEVEREIRO 2016 - LEVANTAMENTO PLANIALTIMÉTRICO
B7: MÃO DE OBRA.
B8: 1 | C8: DESCRIÇÃO DOS INSUMOS | D8: UNID. | E8: QUANT. | F8: CUSTOS UNITÁRIO (R$). | G8: CUSTO TOTAL (R$).
B9: 1.1 | C9: CAMPO | J9: TABELA SERVIÇO TOPOGRAFIA-fev/2016
B10: 1.1.1 | C10: Coordenador/campo | D10: mês | E10: 0.15 | F10: =I10 -> 8201.6 | G10: =E10*F10 -> 1230.24 | I10: 8201.6 | J10: EQUIPE G=08-09-16
B11: 1.1.2 | C11: Topógrafo | D11: mês | E11: 1 | F11: =I11 -> 4403.52 | G11: =E11*F11 -> 4403.52 | I11: 4403.52 | L11: sinapi 07/16 | M11: 7592 | N11: 13.66 | O11: =N11/2.8983 -> 4.713107684 | P11: =O11*2.5022 -> 11.79313805 | Q11: =P11*220 -> 2594.49037
B12: 1.1.3 | C12: Aux. de topografia | D12: mês | E12: 2 | F12: 1814.56 | G12: =E12*F12 -> 3629.12 | I12: 1814.56 | L12: sinapi | M12: 244 | N12: 10.26 | O12: =N12/2.8983 -> 3.540006211 | P12: =O12*2.5022 -> 8.85780354 | Q12: =P12*220 -> 1948.716779
B13: 1.2 | C13: ESCRITÓRIO
B14: 1.2.1 | C14: Coordenador/Esc | D14: mês | E14: 0.2 | F14: 7480 | G14: =E14*F14 -> 1496 | I14: 7480
B15: 1.2.2 | C15: Cadista/Calculista | D15: mês | E15: 0.4 | F15: 3775.2 | G15: =E15*F15 -> 1510.08 | I15: 3775.2
B16: SUB TOTAL: | G16: =SUM(G10:G15) -> 12268.96
B17: ENCARGOS SOCIAIS | F17: 0.5022 | G17: =G16*F17 -> 6161.47
B18: Total do Item 1: | G18: =SUM(G16:G17) -> 18430.43
B19: LOCAÇÃO DE VEICULOS.
B20: 2 | C20: DESCRIÇÃO DOS INSUMOS | D20: UNID. | E20: QUANT. | F20: CUSTOS UNITÁRIO (R$). | G20: CUSTO TOTAL (R$).
B21: 2.1 | C21: Veículo popular potencia de motor de 1.0, incluindo despesas com combustível, lubrificantes, manutenção, licenciamento, seguros, impostos etc., sem motorista | D21: mês | E21: 1 | F21: =VEICULOS!D39 -> 2399.6 | G21: =E21*F21 -> 2399.6 | I21: CODEVASF | J21: 2016-02-01
B22: Total do Item 2: | G22: =SUM(G21) -> 2399.6
B23: EQUIPAMENTOS TOPOGRAFICOS.
B24: 3 | C24: DESCRIÇÃO DOS INSUMOS | D24: UNID. | E24: QUANT. | F24: CUSTOS UNITÁRIO (R$). | G24: CUSTO TOTAL (R$).
B25: 3.1 | C25: Estação total classe 1 completa | D25: mês | E25: 1 | F25: =I25 -> 950 | G25: =E25*F25 -> 950 | I25: 950
B26: 3.2 | C26: Micro/soft/rádio | D26: mês | E26: 0.3 | F26: =I26 -> 499.88 | G26: =E26*F26 -> 149.96 | I26: 499.88
B27: Total do Item 3 | G27: =SUM(G25:G26) -> 1099.96
B28: DESPESAS GERAIS E MATERIAL DE CONSUMO ESTIMADOS PARA USO SIMULTÂNEO DE 02 EQUIPES.
B29: 4 | C29: DESCRIÇÃO DOS INSUMOS | D29: UNID. | E29: QUANT. | F29: CUSTOS UNITÁRIO (R$). | G29: CUSTO TOTAL (R$).
B30: 4.1 | C30: Diárias de estadia | D30: unid. | E30: 66 | F30: ='DIÁRIA ESTADIA'!E22 -> 111.24 | G30: =E30*F30 -> 7341.84 | I30: CODEVASF
B31: 4.2 | C31: Aluguel de Sala para escritório | D31: mês | E31: 0.5 | F31: =J31 -> 500 | G31: 250 | I31: CODEVASF | J31: 500
B32: 4.3 | C32: Energia elétrica | D32: kwh | E32: 200 | F32: 0.39 | G32: 78 | I32: CELPE
B33: 4.4 | C33: Telefone - tarifa mensal | D33: unid. | E33: 1 | F33: 50 | G33: 50 | I33: TIM
B34: 4.5 | C34: Internet | D34: mês | E34: 0.5 | F34: 49.9 | G34: 24.95 | I34: TIM
B35: 4.6 | C35: Material de consumo desenho e escritório | D35: mês | E35: 1 | F35: =J35 -> 200 | G35: 200 | J35: 200
B36: Total do item 4 | G36: =SUM(G30:G35) -> 7944.79
B37: Total Itens 1, 2, 3 e 4 | G37: =SUM(G18,G22,G27,G36) -> 29874.78
B38: 5 | C38: BDI | F38: =BDI!F31 -> 0.218 | G38: =G37*F38 -> 6512.7
B39: 6 | C39: PREÇO MENSAL DA EQUIPE = 1+2+3+4+5 | G39: =G38+G37 -> 36387.48 | I39: 2 EQUIPES PRAZO 12 MESES
B40: 7 | C40: PREÇO UNITÁRIO POR DIA (22 DIAS POR MÊS) | G40: =G39/22 -> 1653.98 | I40: =G40*10*22*2 -> 727751.2
I41: =10*22*2 -> 440 | J41: DIÁRIAS
I43: =490000/G40 -> 296.2550938
G46: =G37+G38 -> 36387.48

Sheet BDI
C2: OBRA: REALIZAÇÃO DE LEVANTAMENTOS TOPOGRÁFICOS PARA APOIO À FISCALIZAÇÃO CODEVASF EM OBRAS DE DIVERSOS MUNICIPIOS DE PERNAMBUCO, NA ÁREA DE ATUAÇÃO DA 3ª SUPERINTENDÊNCIA REGIONAL DA CODEVASF.
C4: DETALHAMENTO DO BDI
C6: Item | D6: Descrição dos serviços | E6: Preço de Venda (%) | F6: Custo Direto (%)
C8: 1 | D8: Administração Central (A) | F8: 0.035
C10: 2 | D10: Impostos e Taxas (I) | E10: =SUM(E11:E14) -> 0.1115
C11: 2.1 | D11: ISS | E11: 0.03
C12: 2.2 | D12: PIS | E12: 0.0065
C13: 2.3 | D13: Cofins | E13: 0.03
C14: 2.4 | D14: CPRB | E14: 0.045
C16: 3 | D16: Risco, seguro e garantia (R) | F16: =SUM(F17:F18) -> 0.014
C17: 3.1 | D17: Risco | F17: 0.01
C18: 3.2 | D18: Seguro + Garantia | F18: 0.004
C20: 4 | D20: Despesas Financeiras (DF) | F20: 0.007
C22: 5 | D22: Lucro (L) | F22: 0.03
D24: BDI* (%) | F24: =ROUND(((((1+F8+F16)*(1+F20)*(1+F22))/(1-E10))-1),4) -> 0.2246
B27: Considerações: | C27: Acórdão nº 2369/2011 - TCU - Plenário - DOU nº174 em 20 de setembro de 2011
C28: (*) BDI (%) = ((((1+AC+R)*(1+DF)*(1+L))/(1-I))-1)
D31: BDI (%) - ADOTADO | F31: 0.218
C33: AC = | D33: taxa de rateio da Administração Central | F33: =F8 -> 0.035
C34: I = | D34: taxa de tributos | F34: =E10 -> 0.1115
C35: R = | D35: taxa de risco, seguro e garantia | F35: =F16 -> 0.014
C36: DF = | D36: taxa das despesas financeiras | F36: =F20 -> 0.007
C37: L = | D37: taxa de lucro | F37: =F22 -> 0.03

Sheet Enc Sociais
B2: DETALHAMENTO DOS ENCARGOS SOCIAIS - MÊS
B4: PLANILHA DE CÁLCULO - HORISTAS | G4: VALORES
G5: % | H5: R$
B6: A | C6: ENCARGOS SOCIAIS BÁSICOS
B7: A2 | C7: INSS | G7: 0 | H7: =G7*Composição!G16 -> 0
B8: A3 | C8: FGTS | G8: 0.08 | H8: =G8*Composição!G16 -> 981.52
B9: A4 | C9: Incra | G9: 0.002 | H9: =G9*Composição!G16 -> 24.54
B10: A5 | C10: Salário Educação | G10: 0.025 | H10: =G10*Composição!G16 -> 306.72
B11: A6 | C11: Sebrae | G11: 0.006 | H11: =G11*Composição!G16 -> 73.61
B12: A7 | C12: Seguro contra acidente | G12: 0.03 | H12: =G12*Composição!G16 -> 368.07
B13: A8 | C13: Senai | G13: 0.01 | H13: =G13*Composição!G16 -> 122.69
B14: A9 | C14: Sesi | G14: 0.015 | H14: =G14*Composição!G16 -> 184.03
B15: SUBTOTAL DE "A" | G15: =ROUND(SUM(G7:G14),4) -> 0.168 | H15: =SUM(H7:H14) -> 2061.18
B17: B | C17: ENCARGOS SOCIAIS QUE RECEBEM INCIDÊNCIA DE "A"
B18: B1 | C18: Repouso Semanal Remunerado | G18: Não incide
B19: B2 | C19: Feriados | G19: Não incide
B20: B3 | C20: Auxilio - Enfermidade | G20: 0.0069 | H20: =G20*Composição!G16 -> 84.66
B21: B4 | C21: 13º Salário | G21: 0.0833 | H21: =G21*Composição!G16 -> 1022
B22: B5 | C22: Licença Paternidade | G22: 0.0006 | H22: =G22*Composição!G16 -> 7.36
B23: B6 | C23: Faltas Justificadas | G23: 0.0056 | H23: =G23*Composição!G16 -> 68.71
B24: B7 | C24: Dias de Chuvas | G24: Não incide
B25: B8 | C25: Auxlio Acidente de Trabalho | G25: 0.0009 | H25: =G25*Composição!G16 -> 11.04
B26: B9 | C26: Férias Gozadas | G26: 0.0757 | H26: =G26*Composição!G16 -> 928.76
B27: B10 | C27: Salário Maternidade | G27: 0.0002 | H27: =G27*Composição!G16 -> 2.45
B28: SUBTOTAL DE "B" | G28: =ROUND(SUM(G18:G27),4) -> 0.1732 | H28: =SUM(H18:H27) -> 2124.98
B30: C | C30: ENCARGOS SOCIAIS QUE NÃO RECEBEM INCIDÊNCIA DE "A"
B31: C1 | C31: Aviso Prévio Indenizado | G31: 0.0494 | H31: =G31*Composição!G16 -> 606.09
B32: C2 | C32: Aviso Prévio Trabalhado | G32: 0.0012 | H32: =G32*Composição!G16 -> 14.72
B33: C3 | C33: Férias Indenizadas | G33: 0.0333 | H33: =G33*Composição!G16 -> 408.56
B34: C4 | C34: Depósito Rescisão Sem Justa Causa | G34: 0.0396 | H34: =G34*Composição!G16 -> 485.85
B35: C5 | C35: Indenização Adicional | G35: 0.0042 | H35: =G35*Composição!G16 -> 51.53
B36: SUBTOTAL DE "C" | G36: =ROUND(SUM(G31:G35),4) -> 0.1277 | H36: =SUM(H31:H35) -> 1566.75
B38: D | C38: REINCIDÊNCIAS
B39: D1 | C39: Reincidência de Grupo A sobre o Grupo B | G39: 0.0291 | H39: =G39*Composição!G16 -> 357.03
B40: D2 | C40: Reincidência de Grupo A sobre aviso Prévio Trabalhado e Reincidência do FGTS sobre aviso Prévio Indenizad | G40: 0.0042 | H40: =G40*Composição!G16 -> 51.53
B41: SUBTOTAL DE "D" | G41: =ROUND(SUM(G39:G40),4) -> 0.0333 | H41: =SUM(H39:H40) -> 408.56
B43: TOTAIS DE ENCARGOS SOCIAIS | G43: =ROUND(G15+G28+G36+G41,4) -> 0.5022 | H43: =H15+H28+H36+H41 -> 6161.47
B44: NOME DO INFORMANTE: | E44: QUALIFICAÇÃO:
B45: ASSINATURA: | E45: DATA:
B46: OBSERVAÇÃO:
B47: 1 - DISCRIMINAR OS ENCARGOS SOCIAIS COM SEUS RESPECTIVOS PERCENTUAS TOTALIZANDO OS MESMOS.
B48: 2 - APLICAR O % TOTAL P/ CALCULAR OS E. SOCIAIS INCIDENTES NA MÃO-DE-OBRA COM VÍNCULO, LINHA "B1" DO FPRO

Sheet VEICULOS
B2: CODEVASF
B3: Serviço de apoio a fiscalização.
B4: Veiculo Popular com ar-condicionado - 1.0 flex. (72CV)
B5: A | C5: Depreciação mensal do equipamento
B6: A1 | C6: Preço de Aquisição | D6: 31407 | F6: Tabela Fipe
B7: A2 | C7: Tempo previsto de vida útil (meses) | D7: 36
B8: A3 | C8: Previsão de recup. Na venda do bem usado | D8: 0.4
B9: A4 | C9: Custo mensal [A1-(A3xA1)]/A2 | D9: =(D6-(D8*D6))/D7 -> 523.45
B10: B | C10: Juros pelo Capital empregado
B11: B1 | C11: Taxa mensal de Juros | D11: 0.05
B12: B2 | C12: Juros s/depreciação/aluguel (B1xA4) | D12: =D11*D9 -> 26.17
B13: C | C13: Conservação e manutenção
B14: C1 | C14: Taxa de gastos s/a deprec. Inc. seguros (%) | D14: 1
B15: C2 | C15: Incidência mensal (C1xA4) | D15: =D14*D9 -> 523.45
B16: D | C16: Combustível
B17: D1 | C17: Média mensal de quilômetro por veículo | D17: 3000
B18: D2 | C18: Preço do litro de combustível | D18: =G18 -> 4 | F18: cotação | G18: 4
B19: D3 | C19: Quilômetros rodados com um litro combustivel | D19: 10
B20: D4 | C20: Combustivel (D1/D3)*D2 | D20: =(D17/D19)*D18 -> 1200
B21: E | C21: Lubrificantes
B22: E1 | C22: Quilometragem do Contrato | D22: =D17*12 -> 36000
B23: E2 | C23: Franquia por troca de óleo (km) | D23: 5000
B24: E3 | C24: Preço do litro de óleo | D24: 24.53
B25: E4 | C25: Quantidade de litros de óleo por troca | D25: 3.5
B26: E5 | C26: Quantidade de dias do Contrato | D26: 365
B27: E6 | C27: Lubrificantes E = (E1*E3*E4*30)/E2*E5 | D27: =(D22*D24*D25*30)/(D23*D26) -> 50.81
B28: F | C28: Pneus
B29: F1 | C29: Quilometragem do Contrato | D29: =D17*12 -> 36000
B30: F2 | C30: Vida do Pneu em quilômetros | D30: 45000
B31: F3 | C31: Quantidade de pneus | D31: 5
B32: F4 | C32: Preço do Pneu | D32: 230.3
B33: F5 | C33: Quantidade de dias do contrato | D33: 365
B34: F6 | C34: Pneus = (F1*F3*F4*30)/(F2*F5) | D34: =(D29*D31*D32*30)/(D30*D33) -> 75.72
B35: G | C35: Motorista
B36: G1 | C36: Salário sem encargos sociais | D36: =L36*2.5022 -> 17.35 | F36: Sinapi pag. 65/105 cód. 4095 | I36: =20.1/2.2638 -> 8.878876226 | K36: 20.1 | L36: =K36/2.8983 -> 6.935099886
I37: =I36*2.2418 -> 19.90466472 | K37: =K36/2 -> 10.05 | L37: =L36*2.5022 -> 17.35300694
B38: H | C38: Custo Mensal
C39: Sem Motorista | D39: =D9+D12+D15+D20+D27+D34 -> 2399.6
C40: Com Motorista | D40: =D9+D12+D15+D20+D27+D34+D36 -> 2416.95
B41: I | C41: Custo Direto p/ km Rodado
C42: Sem Motorista | D42: =D39/D17 -> 0.8
C43: Com Motorista | D43: =D40/D17 -> 0.81
B44: J | C44: Preço cobrado pela empresa
B45: J1 | C45: Sem Motorista | D45: =D39*1.218 -> 2922.71 | F45: =D45/D39 -> 1.217998833
B46: J2 | C46: Com Motorista | D46: =D40*1.218 -> 2943.85

Sheet ORÇAMENTO
B7: ANEXO I - PLANILHA ORÇAMENTÁRIA
B9: SERVIÇO: REALIZAÇÃO DE LEVANTAMENTOS TOPOGRÁFICOS PARA APOIO À FISCALIZAÇÃO CODEVASF.
B11: LOCAL: DIVERSOS MUNICÍPIOS DE ATUAÇÃO DA 3ª SUPERINTENDÊNCIA REGIONAL NO ESTADO DE PERNAMBUCO
B14: Item | C14: Descrição dos Serviços | D14: Unidade | E14: Quant. | F14: Valor Unitário | G14: Valor Total
B15: 1 | C15: Mobilização. | D15: un | E15: 1 | F15: ='COMPOSIÇÕES UNITARIAS'!I31 -> 1081.58 | G15: =E15*F15 -> 1081.58
B16: 2 | C16: Equipe de topografia para execução de serviços especializados em conformidade ao especificado no Termo de Referência. | D16: dia | E16: 180 | F16: =Composição!G40 -> 1653.98 | G16: =E16*F16 -> 297716.4
B17: 3 | C17: Desmobilização. | D17: un | E17: 1 | F17: ='COMPOSIÇÕES UNITARIAS'!I59 -> 1081.58 | G17: =E17*F17 -> 1081.58
B18: TOTAL GERAL R$ | G18: =SUM(G15:G17) -> 299879.56
B19: Base para orçamento: Tabela de Engenharia Consultiva CODEVASF 02/2016

Sheet COMPOSIÇÕES UNITARIAS
B6: CODEVASF | C6: 01.03-A | D6: COMPOSIÇÃO DE PREÇO UNITÁRIO
B7: OBRA: APOIO A FISCALIZAÇÃO DE OBRAS DA 3º SUPERINTENDENCIA REGIONAL. | H7: DATA: Julho/2016
B8: SERVIÇO :Mobilização de equipamentos, materiais e pessoal. | H8: UNIDADE: | I8: unid.
B9: EQUIPAMENTO
B10: DISCRIMINAÇÃO | C10: UNID | D10: QUANT. | E10: PROD | F10: IMPROD | G10: P.UNIT. PROD | H10: P.UNIT. IMPR | I10: P.TOTAL
I11: =G11*D11 -> 0
B12: SUB-TOTAL | I12: =SUM(I11:I11) -> 0
B13: MATERIAL
B14: DISCRIMINAÇÃO | C14: UNID | D14: QUANT. | H14: P.UNIT. | I14: P.TOTAL
B15: Passagem de ônibus da cidade de origem (Recife) para Petrolina. | C15: unid. | D15: 6 | H15: 148 | I15: =D15*H15 -> 888 | K15: PROGRESSO | L15: COTAÇÃO | M15: 2016-09-08
I16: =D16*H16 -> 0
B17: SUB-TOTAL | I17: =SUM(I15:I16) -> 888
B18: SERVIÇOS - COMPOSIÇÕES AUXILIARES
B19: DISCRIMINAÇÃO | C19: UNID | D19: QUANT. | H19: P.UNIT. | I19: P.TOTAL
I20: =D20*H20 -> 0
B21: SUB-TOTAL | I21: =SUM(I20:I20) -> 0
B22: MÃO DE OBRA
B23: DISCRIMINAÇÃO | C23: UNID | D23: QUANT. | H23: P.UNIT. | I23: P.TOTAL
I24: =D24*H24 -> 0
I25: =D25*H25 -> 0
B26: Leis Sociais: 50,08 % | I26: =SUM(I24:I25)*1.2796 -> 0
B27: SUB-TOTAL | I27: =SUM(I24:I26) -> 0
B28: PRODUÇÃO DA EQUIPE | C28: 1 | D28: CUSTO | I28: =I27+I21+I17+I12 -> 888
B29: TOTAL - R$ | I29: =I28/C28 -> 888
B30: BDI | C30: =BDI!F31 -> 0.218 | I30: =I29*C30 -> 193.58
B31: TOTAL DO SERVIÇO - R$ | I31: =I30+I29 -> 1081.58
B34: CODEVASF | C34: 01.04-A | D34: COMPOSIÇÃO DE PREÇO UNITÁRIO
B35: OBRA: APOIO A FISCALIZAÇÃO DE OBRAS DA 3º SUPERINTENDENCIA REGIONAL. | H35: DATA: Agosto/2012
B36: SERVIÇO : Desmobilização de equipamentos, materiais e pessoal. | H36: UNIDADE: | I36: unid.
B37: EQUIPAMENTO
B38: DISCRIMINAÇÃO | C38: UNID | D38: QUANT. | E38: PROD | F38: IMPROD | G38: P.UNIT. PROD | H38: P.UNIT. IMPR | I38: P.TOTAL
I39: =G39*D39 -> 0
B40: SUB-TOTAL | I40: =SUM(I39:I39) -> 0
B41: MATERIAL
B42: DISCRIMINAÇÃO | C42: UNID | D42: QUANT. | H42: P.UNIT. | I42: P.TOTAL
B43: Passagem de ônibus de Petrolina para cidade de origem (Recife). | C43: unid. | D43: 6 | H43: =H15 -> 148 | I43: =D43*H43 -> 888 | K43: PROGRESSO | L43: COTAÇÃO
I44: =D44*H44 -> 0
B45: SUB-TOTAL | I45: =SUM(I43:I44) -> 888
B46: SERVIÇOS - COMPOSIÇÕES AUXILIARES
B47: DISCRIMINAÇÃO | C47: UNID | D47: QUANT. | H47: P.UNIT. | I47: P.TOTAL
I48: =D48*H48 -> 0
B49: SUB-TOTAL | I49: =SUM(I48:I48) -> 0
B50: MÃO DE OBRA
B51: DISCRIMINAÇÃO | C51: UNID | D51: QUANT. | H51: P.UNIT. | I51: P.TOTAL
I52: =D52*H52 -> 0
I53: =D53*H53 -> 0
B54: Leis Sociais: 50,08 % | I54: =SUM(I52:I53)*1.2796 -> 0
B55: SUB-TOTAL | I55: =SUM(I52:I54) -> 0
B56: PRODUÇÃO DA EQUIPE | C56: 1 | D56: CUSTO | I56: =I55+I49+I45+I40 -> 888
B57: TOTAL - R$ | I57: =I56/C56 -> 888
B58: BDI | C58: =BDI!F31 -> 0.218 | I58: =I57*C58 -> 193.58
B59: TOTAL DO SERVIÇO - R$ | I59: =I58+I57 -> 1081.58

Sheet PO-I
B3: PO - I (MODELO)
B9: ANEXO I - PLANILHA ORÇAMENTÁRIA
B11: SERVIÇO: REALIZAÇÃO DE LEVANTAMENTOS TOPOGRÁFICOS PARA APOIO À FISCALIZAÇÃO CODEVASF.
B13: LOCAL: DIVERSOS MUNICÍPIOS DE ATUAÇÃO DA 3ª SUPERINTENDÊNCIA REGIONAL NO ESTADO DE PERNAMBUCO
B16: Item | C16: Descrição dos Serviços | D16: Unidade | E16: Quant. | F16: Valor Unitário | G16: Valor Total
B17: 1 | C17: Mobilização. | D17: unid. | E17: 1 | F17: 0 | G17: =E17*F17 -> 0
B18: 2 | C18: Equipe de topografia para execução de serviços especializados em conformidade ao especificado no Termo de Referência. | D18: dia | E18: 180 | F18: 0 | G18: =E18*F18 -> 0
B19: 3 | C19: Desmobilização. | D19: unid. | E19: 1 | F19: 0 | G19: =E19*F19 -> 0
B20: TOTAL GERAL R$ | G20: =SUM(G17:G19) -> 0
B21: Base para orçamento: Tabela de Engenharia Consultiva CODEVASF 02/2015

Sheet DIÁRIA ESTADIA
A2: DEMONSTRATIVO DE ESTADIA
A4: DESCRIÇÃO DOS INSUMOS | B4: DOCUMENTO | C4: UNID. | D4: QUANT. DIÁRIAS | E4: CUSTOS UNITÁRIO (R$). | F4: CUSTO TOTAL (R$). | G4: Cidades
A5: Diárias de estadia | B5: 87125 | C5: unid. | D5: 2 | E5: 95 | F5: =D5*E5 -> 190 | G5: Afrânio
A6: Diárias de estadia | B6: 4895 | C6: unid. | D6: 5 | E6: 100 | F6: =D6*E6 -> 500 | G6: Arcoverde
A7: Diárias de estadia | B7: 2012-05-24 | C7: unid. | D7: 3 | E7: 95 | F7: 285 | G7: Serra Talhada
A8: Diárias de estadia | B8: 2277 | C8: unid. | D8: 4 | E8: 95 | F8: 380 | G8: Serra Talhada
A9: SUB-TOTAL | D9: =SUM(D5:D8) -> 14 | E9: =F9/D9 -> 96.79 | F9: =SUM(F5:F8) -> 1355
A10: Equipe 3 pessoas | E10: 3 | F10: =E9/E10 -> 32.26
A11: DEMONSTRATIVO DE REFEIÇÃO
A14: DESCRIÇÃO DOS INSUMOS | B14: DOCUMENTO | C14: UNID. | D14: QUANT. | E14: CUSTOS UNITÁRIO (R$). | F14: CUSTO TOTAL (R$). | G14: Cidades
A15: Refeição | B15: 65 | C15: unid. | D15: 3 | E15: 15 | F15: =D15*E15 -> 45 | G15: Serra Talhada
A16: Refeição | B16: 28-02-12. | C16: unid. | D16: 2 | E16: 15 | F16: =D16*E16 -> 30 | G16: Arcoverde
A17: Refeição | B17: 23-02-12. | C17: unid. | D17: 3 | E17: 13 | F17: =D17*E17 -> 39 | G17: Afrânio
A18: Refeição | B18: 14656 | C18: unid. | D18: 3 | E18: 15 | F18: =D18*E18 -> 45 | G18: Exu
A19: SUB-TOTAL | D19: =SUM(D15:D18) -> 11 | E19: =F19/D19 -> 14.45 | F19: =SUM(F15:F18) -> 159
A20: 2 Refeições (Almoço+Jantar) | E20: 3 | F20: =E19*E20 -> 43.35
A22: TOTAL DIÁRIA+REFEIÇÕES (3 PESSOAS) | E22: =E9+E19 -> 111.24 | F22: =E22*D15 -> 333.72
